[Event "FIDE World Rapid-ch Open 2018"]
[White "Golubov, Saveliy"]
[Black "Lobanov, Sergei"]
[Site "St. Petersburg"]
[Round "13.84"]
[Annotator "ChessBase"]
[Result "1/2-1/2"]
[Date "2018.12.28"]
[WhiteElo "2482"]
[BlackElo "2526"]
[PlyCount "184"]
[TimeControl "900+10"]

1. d4 {[%emt 0:0:0]} Nf6 {[%emt 0:0:0]} 2. c4 {[%emt 0:0:9]} e6 {[%emt 0:0:0]} 3. Qc2 {[%emt 0:0:29]} d5 {[%emt 0:0:12]} 4. Nf3 {[%emt 0:0:9]} Be7 {[%emt 0:0:2]} 5. Nc3 {[%emt 0:0:9]} 0-0 {[%emt 0:1:15]} 6. Bf4 {[%emt 0:0:0]} c5 {[%emt 0:0:40]} 7. e3 {[%emt 0:0:9]} cxd4 {[%emt 0:0:14]} 8. Nxd4 {[%emt 0:0:6]} Nc6 {[%emt 0:0:51]} 9. Rd1 {[%emt 0:0:5]} Nxd4 {[%emt 0:2:1]
} 10. Rxd4 {[%emt 0:0:10]} Qa5 {[%emt 0:0:14]} 11. Qa4 {[%emt 0:3:28]
} Qxa4 {[%emt 0:0:33]} 12. Nxa4 {[%emt 0:0:1]} Bd7 {[%emt 0:0:0]} 13. Nc3 {[%emt 0:0:25]} Bc6 {[%emt 0:0:2]} 14. f3 {[%emt 0:0:11]} Rfd8 {[%emt 0:2:11]} 15. Be2 {[%emt 0:1:41]} Bc5 {[%emt 0:0:8]} 16. Rd3 {[%emt 0:1:11]
} dxc4 {[%emt 0:1:16]} 17. Rxd8+ {[%emt 0:0:1]} Rxd8 {[%emt 0:0:0]} 18. Bxc4 {[%emt 0:0:2]} Nh5 {[%emt 0:0:46]} 19. Ke2 {[%emt 0:1:24]} Nxf4+ {[%emt 0:0:12]} 20. exf4 {[%emt 0:0:1]} Rd4 {[%emt 0:0:26]} 21. Bd3 {[%emt 0:0:2]
} Rxf4 {[%emt 0:1:28]} 22. Be4 {[%emt 0:0:53]} f5 {[%emt 0:0:0]} 23. Bxc6 {[%emt 0:0:1]} bxc6 {[%emt 0:0:1]} 24. Rc1 {[%emt 0:0:2]} Rd4 {[%emt 0:3:21]} 25. Nd1 {[%emt 0:0:52]} Rd5 {[%emt 0:0:35]} 26. a3 {[%emt 0:0:22]
} a5 {[%emt 0:0:2]} 27. f4 {[%emt 0:1:19]} Kf7 {[%emt 0:0:22]
} 28. Ne3 {[%emt 0:1:5]} Bxe3 {[%emt 0:0:7]} 29. Kxe3 {[%emt 0:0:1]} Rb5 {[%emt 0:0:22]} 30. b4 {[%emt 0:0:2]} axb4 {[%emt 0:0:12]} 31. axb4 {[%emt 0:0:1]
} Rxb4 {[%emt 0:0:14]} 32. Rxc6 {[%emt 0:0:2]} Rb3+ {[%emt 0:0:0]} 33. Kf2 {[%emt 0:0:4]} h6 {[%emt 0:0:20]} 34. h4 {[%emt 0:0:2]} Rb4 {[%emt 0:0:12]} 35. Kf3 {[%emt 0:0:2]} Rb3+ {[%emt 0:0:11]} 36. Kf2 {[%emt 0:0:1]
} Rb4 {[%emt 0:0:1]} 37. Kg3 {[%emt 0:0:16]} g5 {[%emt 0:0:0]} 38. hxg5 {[%emt 0:0:13]} hxg5 {[%emt 0:0:1]} 39. fxg5 {[%emt 0:0:2]} Rg4+ {[%emt 0:0:2]} 40. Kf3 {[%emt 0:0:7]} Rxg5 {[%emt 0:0:2]} 41. Rc5 {[%emt 0:0:16]
} Rg4 {[%emt 0:0:6]} 42. Ra5 {[%emt 0:0:1]} Kf6 {[%emt 0:0:0]} 43. Ra6 {[%emt 0:0:1]} Rb4 {[%emt 0:0:2]} 44. g3 {[%emt 0:0:19]} Rb3+ {[%emt 0:0:10]} 45. Kf4 {[%emt 0:0:11]} Rc3 {[%emt 0:0:5]} 46. Rb6 {[%emt 0:0:5]
} Ra3 {[%emt 0:0:2]} 47. Rc6 {[%emt 0:0:7]} Ra4+ {[%emt 0:0:0]} 48. Kf3 {[%emt 0:0:1]} Ke5 {[%emt 0:0:1]} 49. Rc5+ {[%emt 0:0:29]} Kd4 {[%emt 0:0:7]} 50. Rc8 {[%emt 0:0:1]} Ke5 {[%emt 0:1:2]} 51. Rc3 {[%emt 0:0:16]
} Kd4 {[%emt 0:0:6]} 52. Rc8 {[%emt 0:0:2]} Kd5 {[%emt 0:0:0]} 53. Rd8+ {[%emt 0:0:37]} Ke5 {[%emt 0:0:4]} 54. Rd3 {[%emt 0:0:1]} Rd4 {[%emt 0:0:9]} 55. Ra3 {[%emt 0:0:8]} Rb4 {[%emt 0:0:16]} 56. Ra5+ {[%emt 0:0:25]
} Kf6 {[%emt 0:0:3]} 57. Ra6 {[%emt 0:0:3]} Rb3+ {[%emt 0:0:0]} 58. Kf4 {[%emt 0:0:4]} Rc3 {[%emt 0:0:1]} 59. Rb6 {[%emt 0:0:7]} Ra3 {[%emt 0:0:1]} 60. Rc6 {[%emt 0:0:43]} Ra4+ {[%emt 0:0:17]} 61. Kf3 {[%emt 0:0:1]
} Ke5 {[%emt 0:0:1]} 62. Rb6 {[%emt 0:0:59]} Ra3+ {[%emt 0:0:0]} 63. Kf2 {[%emt 0:0:1]} Kd5 {[%emt 0:0:6]} 64. Rb5+ {[%emt 0:0:5]} Ke4 {[%emt 0:0:10]} 65. Rb4+ {[%emt 0:0:2]} Ke5 {[%emt 0:0:9]} 66. Rb5+ {[%emt 0:0:1]
} Kf6 {[%emt 0:0:1]} 67. Rb6 {[%emt 0:0:1]} Ke5 {[%emt 0:0:0]} 68. Rb5+ {[%emt 0:0:39]} Kd4 {[%emt 0:0:0]} 69. Rb4+ {[%emt 0:0:31]} Kc5 {[%emt 0:0:0]} 70. Rb8 {[%emt 0:0:26]} Rd3 {[%emt 0:0:0]} 71. Ra8 {[%emt 0:0:44]
} Kd5 {[%emt 0:0:0]} 72. Ra5+ {[%emt 0:2:58]} Ke4 {[%emt 0:0:0]} 73. Ra4+ {[%emt 0:0:1]} Rd4 {[%emt 0:0:0]} 74. Ra2 {[%emt 0:0:1]} e5 {[%emt 0:0:0]} 75. Re2+ {[%emt 0:0:1]} Kd5 {[%emt 0:0:0]} 76. Ra2 {[%emt 0:0:3]
} Rc4 {[%emt 0:0:2]} 77. Kf3 {[%emt 0:0:13]} Rc3+ {[%emt 0:0:0]} 78. Kf2 {[%emt 0:0:1]} e4 {[%emt 0:0:42]} 79. Ra5+ {[%emt 0:0:19]} Rc5 {[%emt 0:0:11]} 80. Ra2 {[%emt 0:0:11]} Ke5 {[%emt 0:0:45]} 81. Ke3 {[%emt 0:0:45]
} Rc3+ {[%emt 0:0:14]} 82. Kf2 {[%emt 0:0:1]} Kd4 {[%emt 0:0:0]} 83. Rd2+ {[%emt 0:0:12]} Rd3 {[%emt 0:0:3]} 84. Ra2 {[%emt 0:0:1]} Rf3+ {[%emt 0:0:34]} 85. Kg2 {[%emt 0:0:2]} Rb3 {[%emt 0:0:2]} 86. Rf2 {[%emt 0:0:22]
} Kd3 {[%emt 0:0:47]} 87. Ra2 {[%emt 0:0:48]} Rc3 {[%emt 0:0:0]} 88. Kf2 {[%emt 0:0:1]} Kd4 {[%emt 0:0:28]} 89. Ra4+ {[%emt 0:0:5]} Rc4 {[%emt 0:0:6]} 90. Ra2 {[%emt 0:0:3]} Kd3 {[%emt 0:0:8]} 91. Ra3+ {[%emt 0:0:9]
} Kd2 {[%emt 0:0:14]} 92. Ra2+ {[%emt 0:0:8]} Kd3 {[%emt 0:0:0]} 1/2-1/2

[Event "FIDE World Rapid-ch Open 2018"]
[White "Christiansen, Johan-Sebastian"]
[Black "Vaisser, Anatoli"]
[Site "St. Petersburg"]
[Round "13.85"]
[Annotator "ChessBase"]
[Result "1-0"]
[Date "2018.12.28"]
[WhiteElo "2555"]
[BlackElo "2505"]
[PlyCount "83"]
[TimeControl "900+10"]

1. e4 {[%emt 0:0:0]} e6 {[%emt 0:0:0]} 2. d4 {[%emt 0:0:0]} d5 {[%emt 0:0:0]} 3. Nc3 {[%emt 0:0:0]} Bb4 {[%emt 0:0:0]} 4. e5 {[%emt 0:0:1]} c5 {[%emt 0:0:3]} 5. a3 {[%emt 0:0:21]} Ba5 {[%emt 0:0:4]} 6. b4 {[%emt 0:0:0]} cxd4 {[%emt 0:0:13]} 7. Nb5 {[%emt 0:0:4]} Bc7 {[%emt 0:0:3]} 8. f4 {[%emt 0:0:15]
} Ne7 {[%emt 0:0:21]} 9. Bd3 {[%emt 0:0:14]} a5 {[%emt 0:1:12]
} 10. Nxc7+ {[%emt 0:0:59]} Qxc7 {[%emt 0:0:2]} 11. b5 {[%emt 0:0:36]} a4 {[%emt 0:0:16]
} 12. Nf3 {[%emt 0:0:30]} Nd7 {[%emt 0:0:7]} 13. 0-0 {[%emt 0:0:0]} Nc5 {[%emt 0:0:11]} 14. Nxd4 {[%emt 0:0:45]} Nxd3 {[%emt 0:0:32]} 15. cxd3 {[%emt 0:0:51]} 0-0 {[%emt 0:0:36]} 16. Be3 {[%emt 0:0:56]} Nf5 {[%emt 0:1:3]
} 17. Nxf5 {[%emt 0:2:33]} exf5 {[%emt 0:0:3]} 18. b6 {[%emt 0:5:6]
} Qd8 {[%emt 0:1:22]} 19. Bd4 {[%emt 0:0:28]} Bd7 {[%emt 0:0:0]} 20. Rc1 {[%emt 0:0:2]} Rc8 {[%emt 0:0:21]} 21. Qd2 {[%emt 0:0:14]} Bc6 {[%emt 0:1:11]} 22. Rc3 {[%emt 0:0:18]} Qd7 {[%emt 0:0:8]} 23. Rfc1 {[%emt 0:0:2]
} Rfe8 {[%emt 0:0:24]} 24. Qf2 {[%emt 0:0:6]} Re6 {[%emt 0:0:0]} 25. h3 {[%emt 0:0:2]} h6 {[%emt 0:0:17]} 26. Kh2 {[%emt 0:0:2]} Rg6 {[%emt 0:0:36]
} 27. R1c2 {[%emt 0:0:4]} Ra8 {[%emt 0:0:26]} 28. Bc5 {[%emt 0:0:27]
} Ra5 {[%emt 0:0:43]} 29. Qd4 {[%emt 0:0:19]} Kh7 {[%emt 0:0:0]} 30. Bd6 {[%emt 0:0:55]} Rb5 {[%emt 0:0:19]} 31. Rf2 {[%emt 0:1:17]} Qd8 {[%emt 0:0:20]} 32. Bc5 {[%emt 0:0:39]} Qh4 {[%emt 0:0:36]} 33. Qe3 {[%emt 0:0:29]
} Rxc5 {[%emt 0:1:3]} 34. Rxc5 {[%emt 0:0:4]} d4 {[%emt 0:0:0]} 35. Qe2 {[%emt 0:0:28]} Rg3 {[%emt 0:2:45]} 36. Rxc6 {[%emt 0:0:42]} Re3 {[%emt 0:0:2]} 37. Qf1 {[%emt 0:0:31]} bxc6 {[%emt 0:0:29]} 38. b7 {[%emt 0:0:1]
} Qd8 {[%emt 0:0:3]} 39. Qb1 {[%emt 0:0:20]} Qb8 {[%emt 0:0:0]} 40. Rc2 {[%emt 0:0:29]} Rxd3 {[%emt 0:0:7]} 41. Rxc6 {[%emt 0:0:1]} Rb3 {[%emt 0:0:39]} 42. Qxf5+ {[%emt 0:0:1]} 1-0

[Event "FIDE World Rapid-ch Open 2018"]
[White "Belozerov, Andrei"]
[Black "Zubritskiy, Artyom"]
[Site "St. Petersburg"]
[Round "13.86"]
[Annotator "ChessBase"]
[Result "1-0"]
[Date "2018.12.28"]
[WhiteElo "2528"]
[BlackElo "2442"]
[PlyCount "99"]
[TimeControl "900+10"]

1. e4 {[%emt 0:0:0]} c5 {[%emt 0:0:0]} 2. Nf3 {[%emt 0:0:0]} d6 {[%emt 0:0:0]} 3. Bb5+ {[%emt 0:0:0]} Bd7 {[%emt 0:0:22]} 4. Bxd7+ {[%emt 0:0:0]} Qxd7 {[%emt 0:0:1]} 5. c4 {[%emt 0:0:0]} g6 {[%emt 0:0:33]} 6. d4 {[%emt 0:0:4]
} cxd4 {[%emt 0:0:2]} 7. Nxd4 {[%emt 0:0:2]} Bg7 {[%emt 0:0:0]} 8. b3 {[%emt 0:0:18]} Nc6 {[%emt 0:3:9]} 9. Bb2 {[%emt 0:0:2]} Nf6 {[%emt 0:3:5]
} 10. Nc3 {[%emt 0:0:1]} 0-0 {[%emt 0:0:9]} 11. 0-0 {[%emt 0:0:0]} e6 {[%emt 0:1:41]} 12. Re1 {[%emt 0:3:10]} Nxd4 {[%emt 0:2:23]} 13. Qxd4 {[%emt 0:0:2]} Nd5 {[%emt 0:0:4]} 14. Qd2 {[%emt 0:0:12]} Nxc3 {[%emt 0:0:2]
} 15. Bxc3 {[%emt 0:0:2]} Bxc3 {[%emt 0:0:2]} 16. Qxc3 {[%emt 0:0:1]
} b5 {[%emt 0:0:4]} 17. cxb5 {[%emt 0:4:2]} Qxb5 {[%emt 0:0:0]} 18. Rad1 {[%emt 0:0:11]} Rfd8 {[%emt 0:0:6]} 19. Rd4 {[%emt 0:0:22]} Rac8 {[%emt 0:1:14]} 20. Qd2 {[%emt 0:0:5]} Qe5 {[%emt 0:2:54]} 21. Rd1 {[%emt 0:0:27]
} Rc6 {[%emt 0:0:3]} 22. g3 {[%emt 0:3:35]} Rdc8 {[%emt 0:0:0]} 23. Qe3 {[%emt 0:0:26]} a6 {[%emt 0:0:27]} 24. Kg2 {[%emt 0:0:29]} Rc3 {[%emt 0:0:37]} 25. R1d3 {[%emt 0:0:34]} Rxd3 {[%emt 0:0:7]} 26. Qxd3 {[%emt 0:0:4]
} Rc6 {[%emt 0:0:2]} 27. b4 {[%emt 0:1:19]} g5 {[%emt 0:0:7]
} 28. h3 {[%emt 0:0:15]} Kf8 {[%emt 0:0:23]} 29. a4 {[%emt 0:0:17]} Ke7 {[%emt 0:0:17]
} 30. Rc4 {[%emt 0:0:50]} Rxc4 {[%emt 0:0:14]} 31. Qxc4 {[%emt 0:0:1]
} Kd7 {[%emt 0:0:4]} 32. Kf3 {[%emt 0:0:48]} h5 {[%emt 0:0:0]} 33. Qxa6 {[%emt 0:0:49]} Qc3+ {[%emt 0:0:2]} 34. Kg2 {[%emt 0:0:30]} Qxb4 {[%emt 0:0:1]} 35. Qa7+ {[%emt 0:0:7]} Ke8 {[%emt 0:0:6]} 36. Qa8+ {[%emt 0:0:7]
} Ke7 {[%emt 0:0:6]} 37. a5 {[%emt 0:0:2]} d5 {[%emt 0:0:24]
} 38. exd5 {[%emt 0:0:11]} Qe4+ {[%emt 0:0:2]} 39. Kh2 {[%emt 0:0:8]} exd5 {[%emt 0:0:12]} 40. Qa7+ {[%emt 0:0:24]} Kf6 {[%emt 0:0:19]} 41. a6 {[%emt 0:0:6]
} h4 {[%emt 0:0:12]} 42. Qb8 {[%emt 0:0:56]} Qf3 {[%emt 0:0:0]} 43. Qb6+ {[%emt 0:0:25]} Kg7 {[%emt 0:0:4]} 44. Qd4+ {[%emt 0:0:1]} Kg6 {[%emt 0:0:5]} 45. gxh4 {[%emt 0:0:4]} Qa3 {[%emt 0:0:14]} 46. a7 {[%emt 0:0:10]
} gxh4 {[%emt 0:0:12]} 47. Qg4+ {[%emt 0:0:8]} Kf6 {[%emt 0:0:0]} 48. Qxh4+ {[%emt 0:0:12]} Ke6 {[%emt 0:0:1]} 49. Qg4+ {[%emt 0:0:0]} Ke7 {[%emt 0:0:28]} 50. Qg5+ {[%emt 0:0:9]} 1-0

[Event "FIDE World Rapid-ch Open 2018"]
[White "Gordievsky, Dmitry"]
[Black "Yeritsyan, Aram"]
[Site "St. Petersburg"]
[Round "13.87"]
[Annotator "ChessBase"]
[Result "0-1"]
[Date "2018.12.28"]
[WhiteElo "2614"]
[BlackElo "2372"]
[PlyCount "90"]
[TimeControl "900+10"]

1. Nf3 {[%emt 0:0:0]} Nf6 {[%emt 0:0:0]} 2. c4 {[%emt 0:0:0]} e6 {[%emt 0:0:0]
} 3. b3 {[%emt 0:0:0]} b6 {[%emt 0:0:1]} 4. g3 {[%emt 0:0:0]} Bb7 {[%emt 0:0:2]} 5. Bg2 {[%emt 0:0:0]} Be7 {[%emt 0:0:1]} 6. 0-0 {[%emt 0:0:0]
} 0-0 {[%emt 0:0:3]} 7. Bb2 {[%emt 0:0:0]} c5 {[%emt 0:0:7]
} 8. Nc3 {[%emt 0:0:2]} d5 {[%emt 0:0:4]} 9. e3 {[%emt 0:0:1]} Nbd7 {[%emt 0:0:12]
} 10. Qe2 {[%emt 0:0:21]} Rc8 {[%emt 0:0:13]} 11. d3 {[%emt 0:0:0]} Qc7 {[%emt 0:2:50]} 12. Rad1 {[%emt 0:0:28]} e5 {[%emt 0:0:19]} 13. e4 {[%emt 0:0:40]} d4 {[%emt 0:0:9]} 14. Nd5 {[%emt 0:0:27]} Nxd5 {[%emt 0:0:0]} 15. cxd5 {[%emt 0:0:18]} b5 {[%emt 0:0:59]} 16. Nd2 {[%emt 0:0:1]} Nb6 {[%emt 0:0:42]} 17. Bh3 {[%emt 0:0:2]} Rcd8 {[%emt 0:0:18]} 18. Rc1 {[%emt 0:0:26]
} Bc8 {[%emt 0:0:36]} 19. Bxc8 {[%emt 0:0:12]} Rxc8 {[%emt 0:0:0]} 20. f4 {[%emt 0:0:10]} Bd6 {[%emt 0:2:4]} 21. fxe5 {[%emt 0:0:35]} Bxe5 {[%emt 0:0:1]} 22. Nf3 {[%emt 0:0:1]} Qe7 {[%emt 0:0:14]} 23. Nxe5 {[%emt 0:0:21]
} Qxe5 {[%emt 0:0:1]} 24. Rf5 {[%emt 0:0:17]} Qd6 {[%emt 0:0:0]} 25. Qg4 {[%emt 0:1:47]} a5 {[%emt 0:0:27]} 26. Rcf1 {[%emt 0:0:24]} Rce8 {[%emt 0:1:10]} 27. Qf4 {[%emt 0:0:46]} Qxf4 {[%emt 0:0:2]} 28. gxf4 {[%emt 0:0:3]
} f6 {[%emt 0:0:57]} 29. d6 {[%emt 0:2:3]} Nd7 {[%emt 0:0:1]
} 30. Rc1 {[%emt 0:1:20]} Rc8 {[%emt 0:0:1]} 31. Kf2 {[%emt 0:0:26]} Kf7 {[%emt 0:0:50]
} 32. Rd5 {[%emt 0:0:15]} Ke6 {[%emt 0:0:45]} 33. f5+ {[%emt 0:0:0]} Kf7 {[%emt 0:0:3]} 34. Ke2 {[%emt 0:0:2]} g5 {[%emt 0:0:29]} 35. Bxd4 {[%emt 0:1:7]} cxd4 {[%emt 0:0:2]} 36. Rc7 {[%emt 0:0:0]} Rxc7 {[%emt 0:0:10]
} 37. dxc7 {[%emt 0:0:3]} Ke7 {[%emt 0:0:5]} 38. Rxb5 {[%emt 0:1:40]
} Rc8 {[%emt 0:0:1]} 39. Rxa5 {[%emt 0:0:13]} Rxc7 {[%emt 0:0:0]} 40. Kd2 {[%emt 0:0:2]} Ne5 {[%emt 0:0:17]} 41. b4 {[%emt 0:0:52]} Rc3 {[%emt 0:0:8]} 42. Ra7+ {[%emt 0:0:10]} Kd8 {[%emt 0:0:5]} 43. b5 {[%emt 0:0:25]
} Rxd3+ {[%emt 0:0:2]} 44. Ke2 {[%emt 0:0:14]} Re3+ {[%emt 0:0:0]} 45. Kd1 {[%emt 0:0:5]} Nc4 {[%emt 0:0:20]} 0-1

[Event "FIDE World Rapid-ch Open 2018"]
[White "Pershin, Denis"]
[Black "Vlassov, Nikolai"]
[Site "St. Petersburg"]
[Round "13.88"]
[Annotator "NA"]
[Result "1-0"]
[Date "2018.12.28"]
[WhiteElo "2400"]
[BlackElo "2401"]
[PlyCount "51"]
[TimeControl "900+10"]

1. d4 {[%emt 0:0:0]} Nf6 {[%emt 0:2:19]} 2. Nc3 {[%emt 0:0:0]} d5 {[%emt 0:0:1]
} 3. Bf4 {[%emt 0:0:0]} c6 {[%emt 0:0:16]} 4. e3 {[%emt 0:0:0]} b5 {[%emt 0:0:12]} 5. Bd3 {[%emt 0:0:17]} Bg4 {[%emt 0:0:16]} 6. Nf3 {[%emt 0:1:7]
} Nbd7 {[%emt 0:0:5]} 7. h3 {[%emt 0:0:20]} Bh5 {[%emt 0:0:0]} 8. g4 {[%emt 0:2:12]} Bg6 {[%emt 0:0:1]} 9. Ne5 {[%emt 0:0:2]} Rc8 {[%emt 0:2:37]
} 10. h4 {[%emt 0:1:22]} e6 {[%emt 0:0:22]} 11. Be2 {[%emt 0:0:0]} b4 {[%emt 0:4:46]} 12. Nb1 {[%emt 0:0:10]} c5 {[%emt 0:1:42]} 13. h5 {[%emt 0:0:14]} Be4 {[%emt 0:0:16]} 14. f3 {[%emt 0:0:1]} Bxc2 {[%emt 0:0:0]} 15. Qxc2 {[%emt 0:0:2]} cxd4 {[%emt 0:0:1]} 16. Qa4 {[%emt 0:0:56]} Rc1+ {[%emt 0:0:15]} 17. Bd1 {[%emt 0:0:1]} Bd6 {[%emt 0:1:32]} 18. exd4 {[%emt 0:0:22]
} Rxd1+ {[%emt 0:0:51]} 19. Qxd1 {[%emt 0:0:6]} Qc7 {[%emt 0:0:0]} 20. Qe2 {[%emt 0:0:32]} 0-0 {[%emt 0:0:13]} 21. Nd2 {[%emt 0:0:10]} Rc8 {[%emt 0:0:24]} 22. 0-0 {[%emt 0:0:5]} Qc2 {[%emt 0:0:43]} 23. Rac1 {[%emt 0:0:28]
} Qxc1 {[%emt 0:0:2]} 24. Rxc1 {[%emt 0:0:1]} Rxc1+ {[%emt 0:0:0]} 25. Kg2 {[%emt 0:0:1]} Nb6 {[%emt 0:0:9]} 26. Nd3 {[%emt 0:0:6]} 1-0

[Event "FIDE World Rapid-ch Open 2018"]
[White "Dzhumagaliev, Yan"]
[Black "Ovchinnikov, Vsevolod"]
[Site "St. Petersburg"]
[Round "13.89"]
[Annotator "NA"]
[Result "1-0"]
[Date "2018.12.28"]
[WhiteElo "2410"]
[BlackElo "2329"]
[PlyCount "141"]
[TimeControl "900+10"]

1. d4 {[%emt 0:0:0]} Nf6 {[%emt 0:0:0]} 2. c4 {[%emt 0:0:0]} g6 {[%emt 0:0:0]} 3. Nf3 {[%emt 0:0:7]} Bg7 {[%emt 0:0:0]} 4. g3 {[%emt 0:0:3]} d5 {[%emt 0:0:0]} 5. cxd5 {[%emt 0:0:25]} Nxd5 {[%emt 0:0:0]} 6. Bg2 {[%emt 0:0:2]
} Nb6 {[%emt 0:0:1]} 7. Nc3 {[%emt 0:0:41]} Nc6 {[%emt 0:0:0]} 8. e3 {[%emt 0:1:31]} 0-0 {[%emt 0:0:11]} 9. 0-0 {[%emt 0:0:12]} Re8 {[%emt 0:0:39]
} 10. d5 {[%emt 0:1:53]} Na5 {[%emt 0:2:4]} 11. Nd4 {[%emt 0:0:0]} Bd7 {[%emt 0:0:16]} 12. Nb3 {[%emt 0:0:2]} Nxb3 {[%emt 0:4:10]} 13. Qxb3 {[%emt 0:0:13]} e6 {[%emt 0:0:9]} 14. e4 {[%emt 0:0:29]} exd5 {[%emt 0:0:10]
} 15. exd5 {[%emt 0:0:2]} a5 {[%emt 0:5:0]} 16. a4 {[%emt 0:0:0]} Qe7 {[%emt 0:0:19]} 17. Nb5 {[%emt 0:3:6]} Bxb5 {[%emt 0:0:18]} 18. Qxb5 {[%emt 0:0:1]} Qb4 {[%emt 0:0:19]} 19. Qxb4 {[%emt 0:0:2]} axb4 {[%emt 0:0:1]
} 20. a5 {[%emt 0:0:0]} Nc4 {[%emt 0:0:23]} 21. Ra4 {[%emt 0:0:0]} Rxa5 {[%emt 0:2:15]} 22. Rxb4 {[%emt 0:0:5]} Nd6 {[%emt 0:0:3]} 23. Bf4 {[%emt 0:0:23]} Be5 {[%emt 0:0:9]} 24. Bh6 {[%emt 0:3:14]} Rb5 {[%emt 0:0:36]
} 25. Rxb5 {[%emt 0:0:10]} Nxb5 {[%emt 0:0:2]} 26. Rc1 {[%emt 0:0:52]
} Bd6 {[%emt 0:1:53]} 27. Be3 {[%emt 0:0:3]} b6 {[%emt 0:0:0]} 28. Bf1 {[%emt 0:0:13]} Na7 {[%emt 0:0:1]} 29. Ra1 {[%emt 0:0:3]} Nc8 {[%emt 0:0:16]} 30. Ra8 {[%emt 0:0:1]} Be5 {[%emt 0:0:11]} 31. Bb5 {[%emt 0:0:4]
} Rf8 {[%emt 0:0:2]} 32. Ra2 {[%emt 0:1:25]} Ne7 {[%emt 0:0:0]} 33. Bc4 {[%emt 0:0:17]} Rd8 {[%emt 0:0:13]} 34. Bg5 {[%emt 0:0:2]} Kf8 {[%emt 0:0:11]} 35. b3 {[%emt 0:0:21]} f6 {[%emt 0:0:6]} 36. Bh6+ {[%emt 0:0:0]} Ke8 {[%emt 0:0:1]} 37. Re2 {[%emt 0:0:20]} Kd7 {[%emt 0:0:16]} 38. g4 {[%emt 0:1:0]} Kd6 {[%emt 0:0:8]} 39. Be3 {[%emt 0:0:57]} b5 {[%emt 0:0:0]} 40. f4 {[%emt 0:1:26]} Bc3 {[%emt 0:0:11]} 41. Bxb5 {[%emt 0:0:4]} Nxd5 {[%emt 0:0:1]} 42. Bc1 {[%emt 0:0:7]} Bd4+ {[%emt 0:0:8]} 43. Kg2 {[%emt 0:0:12]
} Nc3 {[%emt 0:0:2]} 44. Re8 {[%emt 0:0:12]} Rxe8 {[%emt 0:0:0]} 45. Bxe8 {[%emt 0:0:1]} Nd5 {[%emt 0:0:33]} 46. Kf3 {[%emt 0:0:5]} c5 {[%emt 0:0:12]} 47. Bf7 {[%emt 0:0:4]} Nc7 {[%emt 0:0:9]} 48. h4 {[%emt 0:0:0]} Ke7 {[%emt 0:0:2]} 49. Bc4 {[%emt 0:0:5]} h6 {[%emt 0:0:15]} 50. Ke4 {[%emt 0:0:7]} Bf2 {[%emt 0:0:13]} 51. h5 {[%emt 0:0:3]} gxh5 {[%emt 0:0:13]
} 52. gxh5 {[%emt 0:0:1]} Ne8 {[%emt 0:0:2]} 53. Kf5 {[%emt 0:0:8]
} Nd6+ {[%emt 0:0:16]} 54. Kg6 {[%emt 0:0:2]} f5 {[%emt 0:0:0]} 55. Bd2 {[%emt 0:0:44]} Bd4 {[%emt 0:0:6]} 56. Ba5 {[%emt 0:0:8]} Be3 {[%emt 0:0:8]} 57. Bb6 {[%emt 0:0:6]} Nc8 {[%emt 0:0:18]} 58. Bc7 {[%emt 0:0:8]
} Nd6 {[%emt 0:0:1]} 59. Kxh6 {[%emt 0:0:31]} Bxf4+ {[%emt 0:0:0]} 60. Kg6 {[%emt 0:0:1]} Be5 {[%emt 0:0:16]} 61. Bd5 {[%emt 0:0:11]} Kd7 {[%emt 0:0:15]} 62. Bb6 {[%emt 0:0:15]} Bd4 {[%emt 0:0:9]} 63. b4 {[%emt 0:0:38]
} Nc8 {[%emt 0:0:9]} 64. Bxc5 {[%emt 0:0:36]} Ne7+ {[%emt 0:0:0]} 65. Bxe7 {[%emt 0:0:3]} Kxe7 {[%emt 0:0:1]} 66. Kxf5 {[%emt 0:0:0]} Be3 {[%emt 0:0:19]} 67. Kg6 {[%emt 0:0:4]} Kf8 {[%emt 0:0:11]} 68. h6 {[%emt 0:0:2]} Bd4 {[%emt 0:0:3]} 69. h7 {[%emt 0:0:10]} Ke7 {[%emt 0:0:0]} 70. b5 {[%emt 0:0:3]} Kd6 {[%emt 0:0:9]} 71. b6 {[%emt 0:0:4]} 1-0

[Event "FIDE World Rapid-ch Open 2018"]
[White "Gaifullin, Artur"]
[Black "Zablotsky, Sergei"]
[Site "St. Petersburg"]
[Round "13.90"]
[Annotator "ChessBase"]
[Result "0-1"]
[Date "2018.12.28"]
[WhiteElo "2448"]
[BlackElo "2511"]
[PlyCount "84"]
[TimeControl "900+10"]

1. d4 {[%emt 0:0:0]} d6 {[%emt 0:0:0]} 2. Nf3 {[%emt 0:0:0]} g6 {[%emt 0:0:0]} 3. c4 {[%emt 0:0:1]} Bg7 {[%emt 0:0:0]} 4. e3 {[%emt 0:0:9]} e5 {[%emt 0:0:31]
} 5. Nc3 {[%emt 0:1:26]} Nd7 {[%emt 0:0:33]} 6. Be2 {[%emt 0:0:0]} Ngf6 {[%emt 0:0:22]} 7. 0-0 {[%emt 0:0:29]} 0-0 {[%emt 0:0:5]} 8. Re1 {[%emt 0:0:15]} Re8 {[%emt 0:0:38]} 9. Bf1 {[%emt 0:0:9]} e4 {[%emt 0:0:0]} 10. Nd2 {[%emt 0:0:2]} Nf8 {[%emt 0:0:6]} 11. h3 {[%emt 0:0:1]} h5 {[%emt 0:0:4]} 12. b4 {[%emt 0:0:2]} g5 {[%emt 0:1:55]} 13. Qc2 {[%emt 0:1:53]
} Qe7 {[%emt 0:0:20]} 14. f3 {[%emt 0:2:0]} exf3 {[%emt 0:0:0]} 15. Nxf3 {[%emt 0:0:1]} g4 {[%emt 0:0:44]} 16. Ng5 {[%emt 0:0:22]} c6 {[%emt 0:1:49]} 17. Bd3 {[%emt 0:1:17]} Nd5 {[%emt 0:2:5]} 18. cxd5 {[%emt 0:3:12]
} Qxg5 {[%emt 0:0:11]} 19. Ne4 {[%emt 0:0:18]} Qxd5 {[%emt 0:0:0]} 20. Rf1 {[%emt 0:0:10]} Re6 {[%emt 0:0:42]} 21. h4 {[%emt 0:1:42]} Re7 {[%emt 0:2:31]} 22. Ng5 {[%emt 0:0:30]} Be6 {[%emt 0:1:23]} 23. Bb2 {[%emt 0:0:8]
} c5 {[%emt 0:0:31]} 24. Rad1 {[%emt 0:2:24]} cxb4 {[%emt 0:0:0]} 25. Kh1 {[%emt 0:0:59]} Rc8 {[%emt 0:0:10]} 26. Qf2 {[%emt 0:0:3]} Qxa2 {[%emt 0:0:23]} 27. Rd2 {[%emt 0:0:1]} Qb3 {[%emt 0:0:3]} 28. d5 {[%emt 0:0:49]
} Bxb2 {[%emt 0:0:20]} 29. dxe6 {[%emt 0:0:2]} fxe6 {[%emt 0:0:0]} 30. Rxb2 {[%emt 0:0:40]} Qxd3 {[%emt 0:0:2]} 31. Qf6 {[%emt 0:0:2]
} Rec7 {[%emt 0:0:52]} 32. Rbf2 {[%emt 0:0:10]} Qg6 {[%emt 0:0:7]} 33. Qb2 {[%emt 0:0:12]} Rc2 {[%emt 0:0:7]} 34. Qxb4 {[%emt 0:0:20]} Rxf2 {[%emt 0:0:0]} 35. Rxf2 {[%emt 0:0:0]} g3 {[%emt 0:0:2]} 36. Rf1 {[%emt 0:0:4]} Qd3 {[%emt 0:0:4]} 37. Qe1 {[%emt 0:0:23]} Rc4 {[%emt 0:0:14]} 38. Nf3 {[%emt 0:0:11]
} Ng6 {[%emt 0:0:2]} 39. Kg1 {[%emt 0:0:11]} Rg4 {[%emt 0:0:0]} 40. Qa5 {[%emt 0:0:14]} Qxe3+ {[%emt 0:0:2]} 41. Kh1 {[%emt 0:0:1]} Qf4 {[%emt 0:0:21]} 42. Qxh5 {[%emt 0:0:22]} Rxh4+ {[%emt 0:0:3]} 0-1

[Event "FIDE World Rapid-ch Open 2018"]
[White "Gurvich, Vitaly"]
[Black "Sanikidze, Tornike"]
[Site "St. Petersburg"]
[Round "13.91"]
[Annotator "ChessBase"]
[Result "0-1"]
[Date "2018.12.28"]
[WhiteElo "2270"]
[BlackElo "2507"]
[PlyCount "86"]
[TimeControl "900+10"]

1. c4 {[%emt 0:0:0]} e6 {[%emt 0:0:0]} 2. d4 {[%emt 0:0:0]} d5 {[%emt 0:0:0]} 3. Nf3 {[%emt 0:0:0]} Nf6 {[%emt 0:0:0]} 4. Bg5 {[%emt 0:0:0]} h6 {[%emt 0:0:0]} 5. Bh4 {[%emt 0:0:2]} Bb4+ {[%emt 0:0:18]} 6. Nc3 {[%emt 0:0:0]} dxc4 {[%emt 0:0:9]} 7. Qa4+ {[%emt 0:0:50]} Nc6 {[%emt 0:0:1]} 8. e3 {[%emt 0:0:4]} Bd7 {[%emt 0:0:50]} 9. Qc2 {[%emt 0:2:9]} b5 {[%emt 0:0:0]} 10. Be2 {[%emt 0:0:9]} a6 {[%emt 0:0:13]} 11. 0-0 {[%emt 0:0:21]} Be7 {[%emt 0:0:2]} 12. Bxf6 {[%emt 0:0:15]} gxf6 {[%emt 0:0:23]} 13. e4 {[%emt 0:1:13]
} Qb8 {[%emt 0:2:17]} 14. d5 {[%emt 0:0:40]} Ne5 {[%emt 0:0:0]} 15. Nxe5 {[%emt 0:0:38]} fxe5 {[%emt 0:0:2]} 16. Bg4 {[%emt 0:0:3]} Qb6 {[%emt 0:0:4]} 17. dxe6 {[%emt 0:0:28]} fxe6 {[%emt 0:0:18]} 18. Bh5+ {[%emt 0:0:7]
} Kd8 {[%emt 0:0:1]} 19. b3 {[%emt 0:0:38]} cxb3 {[%emt 0:0:0]} 20. axb3 {[%emt 0:0:37]} Kc8 {[%emt 0:0:15]} 21. Rfd1 {[%emt 0:0:24]} Bc5 {[%emt 0:0:4]} 22. Rac1 {[%emt 0:1:34]} Rf8 {[%emt 0:0:5]} 23. Bf3 {[%emt 0:0:16]
} Bd4 {[%emt 0:0:46]} 24. Ne2 {[%emt 0:0:38]} Bxf2+ {[%emt 0:0:0]} 25. Kh1 {[%emt 0:0:1]} Be3 {[%emt 0:0:2]} 26. Qd3 {[%emt 0:0:49]} Rd8 {[%emt 0:0:1]} 27. Rc3 {[%emt 0:0:22]} Bg5 {[%emt 0:0:2]} 28. Qc2 {[%emt 0:2:14]
} Kb7 {[%emt 0:0:13]} 29. Rc5 {[%emt 0:0:33]} Bc6 {[%emt 0:0:0]} 30. Rxe5 {[%emt 0:0:31]} Rxd1+ {[%emt 0:0:1]} 31. Qxd1 {[%emt 0:0:1]} Rd8 {[%emt 0:0:1]} 32. Qb1 {[%emt 0:1:0]} Rd6 {[%emt 0:0:12]} 33. h3 Qe3 {[%emt 0:1:32]
} 34. b4 {[%emt 0:1:36]} Rd2 {[%emt 0:0:43]} 35. Ng1 {[%emt 0:0:0]} Qd4 {[%emt 0:3:52]} 36. Rxe6 {[%emt 0:0:15]} Rb2 {[%emt 0:0:2]} 37. Qf1 {[%emt 0:0:28]} Qc4 {[%emt 0:0:15]} 38. Qxc4 {[%emt 0:0:19]} bxc4 {[%emt 0:0:1]
} 39. Ne2 {[%emt 0:0:5]} Be3 {[%emt 0:1:5]} 40. Nc3 {[%emt 0:0:0]} Rxb4 {[%emt 0:0:36]} 41. e5 {[%emt 0:0:20]} Bxf3 {[%emt 0:0:4]} 42. gxf3 {[%emt 0:0:1]} Bd4 {[%emt 0:0:58]} 43. Nd5 {[%emt 0:0:22]} Rb5 {[%emt 0:0:3]
} 0-1